bitfinex/quotes_ETHUSD_20230119
["timestamp","ask_amount","ask_price","bid_price","bid_amount"]
[1674135914119,18.69383591,1525.0,1524.7,7.93058]
[1674135914433,18.69383591,1525.0,1524.7,7.9956985]
[1674135914651,18.69383591,1525.0,1524.7,6.6236985]
[1674135915285,21.38572886,1525.0,1524.7,6.6236985]
[1674135915430,22.41390775,1525.0,1524.7,6.6236985]
[1674135915641,18.69383591,1525.0,1524.7,6.6236985]
[1674135915851,0.066,1525.0,1524.7,19.7410185]
[1674135916123,0.83518065,1525.1,1524.7,19.7410185]
[1674135916279,0.83518065,1525.1,1524.7,21.1130185]
[1674135916497,0.14784474,1525.1,1524.8,2.11130185]
[1674135916742,0.14784474,1525.1,1524.9,13.1156]
[1674135916950,0.14784474,1525.1,1524.9,13.1807185]
[1674135917509,0.83518065,1525.1,1524.9,13.1807185]
[1674135918014,0.14784474,1525.1,1524.9,13.1807185]
[1674135918184,0.14784474,1525.1,1525.0,1.31807185]
[1674135918393,0.14784474,1525.1,1525.0,2.68407185]
[1674135918610,0.14784474,1525.1,1525.0,22.35618185]
[1674135918822,0.14784474,1525.1,1525.0,22.42130035]
[1674135919009,10.77465066,1525.3,1525.1,1.0]
[1674135919217,10.77465066,1525.3,1525.1,7.55687]
[1674135919444,10.77465066,1525.3,1525.1,7.6219885]
[1674135919687,0.75333591,1525.3,1525.1,7.6219885]
[1674135920008,0.68733591,1525.3,1525.1,7.6219885]
[1674135920392,0.68733591,1525.3,1525.1,6.6219885]
[1674135920607,1.7155148,1525.3,1525.1,6.6219885]
[1674135920954,0.68733591,1525.3,1525.1,7.6219885]
[1674135921491,0.68733591,1525.3,1525.1,6.6219885]
[1674135922699,1.7155148,1525.3,1525.1,6.6219885]
[1674135923542,0.68733591,1525.2,1525.1,6.6219885]
[1674135923745,1.7155148,1525.3,1525.1,6.6219885]
[1674135923957,0.68733591,1525.3,1525.1,6.6219885]
[1674135924386,9.67701848,1525.4,1525.1,21.70954135]
[1674135925057,0.68733591,1525.3,1525.1,21.70954135]
[1674135925276,0.68733591,1525.3,1525.1,19.7358685]
[1674135929470,1.87499737,1525.4,1525.1,19.7358685]
[1674135930286,0.68733591,1525.3,1525.1,19.7358685]
[1674135932111,0.68733591,1525.3,1525.1,6.6219885]
[1674135932892,0.68733591,1525.3,1525.2,0.56264796]
[1674135935020,1.7155148,1525.3,1525.2,0.56264796]
[1674135935225,1.35318427,1525.3,1525.2,0.56264796]
[1674135935454,1.70006183,1525.3,1525.2,0.56264796]
[1674135936048,8.25614183,1525.3,1525.2,0.56264796]
[1674135936295,8.55214183,1525.3,1525.2,0.56264796]
[1674135937787,15.10822183,1525.3,1525.2,0.56264796]
[1674135938156,15.60002183,1525.3,1525.2,0.56264796]
[1674135938368,18.89176942,1525.3,1525.2,0.56264796]
[1674135938680,25.44784942,1525.3,1525.2,0.56264796]
[1674135940252,25.44784942,1525.3,1525.2,0.46264796]
[1674135941038,10.0737652,1525.3,1525.2,0.46264796]
[1674135941824,1.91262875,1525.3,1525.2,0.46264796]
[1674135942040,1.35482875,1525.3,1525.2,0.46264796]
[1674135942401,2.7298852,1525.3,1525.2,0.46264796]
[1674135942844,1.35482875,1525.3,1525.2,0.46264796]
[1674135943489,2.04141393,1525.3,1525.2,0.46264796]
[1674135943674,0.68658518,1525.3,1525.2,0.46264796]
[1674135944446,1.71640855,1525.3,1525.2,0.46264796]
[1674135944787,1.02982337,1525.3,1525.2,0.46264796]
[1674135945319,2.40487982,1525.3,1525.2,0.46264796]
[1674135945524,4.19957727,1525.3,1525.2,0.46264796]
[1674135945681,2.82452082,1525.3,1525.2,0.46264796]
[1674135946720,0.68656066,1525.3,1525.2,0.46264796]
[1674135949513,1.71638403,1525.3,1525.2,0.46264796]
[1674135949658,0.68656066,1525.3,1525.2,0.46264796]
[1674135950766,1.02982337,1525.3,1525.2,0.46264796]
[1674135951149,2.40487982,1525.3,1525.2,0.46264796]
[1674135951972,2.4649849,1525.3,1525.2,0.46264796]
[1674135952186,4.17824704,1525.3,1525.2,0.46264796]
[1674135952856,2.4649849,1525.3,1525.2,0.46264796]
[1674135953237,4.17824704,1525.3,1525.2,0.46264796]
[1674135953488,9.35927059,1525.3,1525.2,0.46264796]
[1674135953693,10.80050916,1525.3,1525.2,0.46264796]
[1674135954093,10.11862359,1525.3,1525.2,0.46264796]
[1674135954754,3.56254359,1525.3,1525.2,0.46264796]
[1674135955077,3.49654359,1525.3,1525.2,0.46264796]
[1674135955287,1.37523857,1525.3,1525.2,0.46264796]
[1674135956079,0.68785268,1525.3,1525.2,0.46264796]
[1674135956332,0.68785268,1525.3,1525.2,7.01915796]
[1674135956548,0.68785268,1525.3,1525.2,13.64078646]
[1674135956769,0.84733525,1525.4,1525.2,22.2967697]
[1674135957084,0.15948257,1525.4,1525.3,2.22025405]
[1674135957231,0.15948257,1525.4,1525.3,21.88849405]
[1674135957442,0.15948257,1525.4,1525.3,25.56198793]
[1674135961668,0.15948257,1525.4,1525.3,24.02498793]
[1674135962528,0.15948257,1525.4,1525.3,25.56398793]
[1674135964115,0.15948257,1525.4,1525.3,28.85573552]
[1674135964636,0.15551056,1525.4,1525.3,31.85573552]
[1674135964845,0.15307001,1525.6,1525.4,1.003972]
[1674135965054,0.15307001,1525.6,1525.5,22.8560572]
[1674135965387,0.15307001,1525.6,1525.5,26.21292329]
[1674135965619,0.15307001,1525.6,1525.5,26.7636626]
[1674135966488,0.15307001,1525.6,1525.5,29.7636626]
[1674135967183,0.15307001,1525.6,1525.5,10.0980026]
[1674135967995,0.15307001,1525.6,1525.5,8.5530026]
[1674135969969,0.15307001,1525.6,1525.5,8.00226329]
[1674135970186,0.15307001,1525.6,1525.5,4.7105157]
[1674135970374,0.15307001,1525.6,1525.5,1.6453972]
[1674135971144,0.15307001,1525.6,1525.5,2.6453972]
[1674135971480,0.15307001,1525.6,1525.5,5.6453972]
[1674135971649,0.15307001,1525.6,1525.5,9.00226329]
[1674135972269,0.15307001,1525.6,1525.5,10.54726329]
[1674135972792,0.15307001,1525.6,1525.5,11.64874191]
[1674135973003,0.15307001,1525.6,1525.5,11.0980026]
[1674135974788,0.15307001,1525.6,1525.5,11.5897026]
[1674135975228,0.15307001,1525.9,1525.5,13.1347026]
[1674135975440,0.15307001,1525.9,1525.8,3.079]
[1674135975693,0.15307001,1525.9,1525.8,9.37074759]
[1674135976008,0.15307001,1525.9,1525.8,10.4783054]
[1674135976152,0.15307001,1525.9,1525.8,9.9866054]
[1674135976363,0.15307001,1525.9,1525.8,12.53026594]
[1674135976893,0.15307001,1525.9,1525.8,12.76026594]
[1674135977491,0.15307001,1525.9,1525.8,19.69626594]
[1674135977663,7.001e-05,1525.9,1525.8,19.69626594]
[1674135977878,0.17111522,1526.1,1525.9,7.936]
[1674135978086,0.17111522,1526.1,1526.0,10.40534759]
[1674135978295,0.17111522,1526.1,1526.0,11.0212054]
[1674135978752,0.16525382,1526.2,1526.1,7.936]
[1674135979076,0.16525382,1526.2,1526.1,11.7142054]
[1674135979296,0.16525382,1526.2,1526.1,11.4842054]
[1674135979599,0.16525382,1526.2,1526.1,12.24338594]
[1674135980842,0.16525382,1526.2,1526.1,12.47338594]
[1674135982587,0.06409178,1526.3,1526.1,20.95238594]
[1674135982841,0.06409178,1526.3,1526.2,11.57124759]
[1674135983007,9.178e-05,1526.3,1526.2,22.26275468]
[1674135983217,1.28308567,1526.4,1526.2,22.81349399]
[1674135983424,1.28308567,1526.4,1526.3,7.36774759]
[1674135983700,1.28308567,1526.4,1526.3,10.66286609]
[1674135983865,1.28308567,1526.4,1526.3,13.4398548]
[1674135984690,0.06934657,1526.4,1526.3,13.4398548]
[1674135986429,0.06934657,1526.4,1526.3,11.9018548]
[1674135988944,0.00034657,1526.4,1526.3,11.9018548]
[1674135996877,0.17968059,1526.7,1526.4,2.545]
[1674135997120,0.17968059,1526.7,1526.6,2.541]
[1674135997336,0.17968059,1526.7,1526.6,8.83274759]
[1674135997561,0.17968059,1526.7,1526.6,8.89786609]
[1674135997789,0.17968059,1526.7,1526.6,27.54936609]
[1674135999799,0.17968059,1526.7,1526.6,19.7166185]
[1674135999931,0.17968059,1526.7,1526.6,6.6156185]
[1674136001878,0.17968059,1526.7,1526.6,0.0651185]
[1674136002096,0.26532632,1526.7,1526.5,6.6158285]
[1674136004091,0.17968059,1526.7,1526.5,6.6158285]
[1674136005040,0.17968059,1526.7,1526.6,1.0]
[1674136005208,0.17968059,1526.7,1526.6,26.94324759]
[1674136005552,0.17968059,1526.7,1526.6,27.00836609]
[1674136005771,0.18547667,1526.8,1526.7,1.0]
[1674136005922,0.18547667,1526.8,1526.7,23.60484661]
[1674136006135,0.18547667,1526.8,1526.7,23.66996511]
[1674136006349,0.18547667,1526.8,1526.7,22.66996511]
[1674136009555,0.18547667,1526.8,1526.7,19.7153285]
[1674136010270,0.18547667,1526.8,1526.7,13.1652585]
[1674136010608,0.18547667,1526.8,1526.7,0.0651185]
[1674136010919,0.18547667,1526.8,1526.6,13.1661185]
[1674136012369,0.18547667,1526.8,1526.6,19.7166185]
[1674136012547,0.18547667,1526.8,1526.6,21.68828035]
[1674136014660,0.18547667,1526.8,1526.6,24.98002794]
[1674136015367,0.18547667,1526.8,1526.7,19.65021]
[1674136015657,0.18547667,1526.8,1526.7,19.7153285]
[1674136016844,0.18547667,1526.8,1526.7,23.00707609]
[1674136017037,0.18547667,1526.8,1526.7,29.8457837]
[1674136018127,0.18547667,1526.8,1526.7,31.92620469]
[1674136018285,0.25147667,1527.1,1526.8,1.0]
[1674136018496,0.18547667,1527.1,1527.0,6.37074759]
[1674136018709,0.18401126,1527.2,1527.0,9.43586609]
[1674136018952,0.18401126,1527.2,1527.1,1.94358661]
[1674136019138,0.18401126,1527.2,1527.1,4.0140076]
[1674136019355,0.18401126,1527.2,1527.1,11.0273576]
[1674136019543,0.18401126,1527.2,1527.1,10.55505511]
[1674136019752,0.18401126,1527.2,1527.1,10.55705511]
[1674136019977,1.126e-05,1527.2,1527.1,19.63431562]
[1674136020206,0.87186394,1527.5,1527.2,1.0]
[1674136020438,0.87186394,1527.5,1527.3,0.1]
[1674136020627,0.87186394,1527.5,1527.3,3.1]
[1674136020865,20.6664,1527.8,1527.6,2.21865149]
[1674136020866,1.71363027,1527.8,1527.6,2.21865149]
[1674136021076,1.1219087,1528.0,1527.6,2.20151032]
[1674136021286,0.6854235,1527.9,1527.5,3.0]
[1674136021471,0.6854235,1527.9,1527.5,8.74790032]
[1674136021682,0.6854235,1527.9,1527.6,3.0]
[1674136021933,0.6854235,1527.9,1527.5,0.0651185]
[1674136021934,1.531,1527.7,1527.5,0.0651185]
[1674136022102,3.5761,1527.6,1527.1,0.52060802]
[1674136022342,0.68594349,1527.4,1527.1,0.45548952]
[1674136022679,1.545,1527.2,1527.1,0.45548952]
[1674136022893,2.0362,1527.2,1527.1,0.45548952]
[1674136023044,3.0362,1527.2,1527.1,0.45548952]
[1674136023517,2.0362,1527.2,1527.1,0.45548952]
[1674136023902,3.0362,1527.2,1527.1,0.45548952]
[1674136024233,4.14706727,1527.2,1526.5,6.6159185]
[1674136024408,1.545,1527.0,1526.5,6.6159185]
[1674136024616,1.545,1527.0,1526.5,7.6159185]
[1674136024844,0.4912,1527.1,1526.6,1.1375703]
[1674136024845,2.0362,1527.1,1526.6,1.1375703]
[1674136025095,2.0362,1527.1,1526.7,0.11375703]
[1674136025314,2.0362,1527.1,1526.6,1.0]
[1674136025667,2.0362,1527.1,1526.5,7.6159185]
[1674136026530,0.4912,1527.1,1526.6,1.13757539]
[1674136026880,0.4912,1527.1,1526.8,1.0]
[1674136027479,0.4912,1527.2,1526.7,8.88936985]
[1674136027664,0.4912,1527.2,1526.7,0.0651185]
[1674136027665,0.72115378,1527.2,1526.7,0.0651185]
[1674136027874,4.01290137,1527.2,1526.6,3.0651185]
[1674136028144,1.94629014,1527.1,1526.6,3.0]
[1674136028569,1.4913,1527.0,1526.6,3.0]
[1674136028715,3.0363,1527.0,1526.5,0.0651185]
[1674136028928,3.0363,1527.0,1526.4,7.73095365]
[1674136028929,3.44087759,1526.9,1526.4,0.0651185]
[1674136029203,7.46899108,1526.8,1526.2,0.0651185]
[1674136029506,4.0386467,1526.7,1526.1,0.0651185]
[1674136029734,4.0386467,1526.7,1526.0,0.68838365]
[1674136029735,4.01314759,1526.6,1526.0,0.68838365]
[1674136029905,4.547,1526.5,1525.9,2.75960577]
[1674136030264,0.4915,1526.4,1526.0,10.81665975]
[1674136030419,0.4915,1526.4,1526.1,1.13793522]
[1674136030786,0.4915,1526.4,1526.0,0.17224071]
[1674136030998,0.4915,1526.4,1526.0,0.10712221]
[1674136031149,0.4915,1526.4,1526.0,1.93348189]
[1674136031515,0.4915,1526.4,1526.0,0.10712221]
[1674136032513,2.0365,1526.4,1525.9,0.10376514]
[1674136032884,1.539,1526.3,1525.9,0.03864664]
[1674136033045,0.4915,1526.4,1525.9,0.03864664]
[1674136033046,1.545,1526.2,1525.9,0.03864664]
[1674136033251,1.6995,1526.1,1525.9,0.03864664]
[1674136033462,1.545,1526.0,1525.9,0.03864664]
[1674136033723,2.0366,1526.0,1525.9,0.03864664]
[1674136034211,0.4916,1526.0,1525.9,0.03864664]
[1674136034612,0.4916,1526.1,1525.9,0.03864664]
[1674136034843,0.6461,1526.1,1525.9,0.03864664]
[1674136035306,0.4916,1526.1,1525.9,0.03864664]
[1674136035665,0.4915,1526.2,1525.9,0.03864664]
[1674136035905,0.4915,1526.3,1525.9,0.03864664]
[1674136036349,0.4915,1526.3,1526.0,1.0]
[1674136036938,0.4915,1526.4,1525.9,8.86237158]
[1674136037184,0.4915,1526.4,1525.9,0.10376514]
[1674136037185,3.78324759,1526.4,1525.9,0.10376514]
[1674136037441,1.545,1526.3,1525.9,0.03864664]
[1674136037577,2.0365,1526.2,1525.9,0.03864664]
[1674136037943,1.74865,1526.2,1525.9,0.03864664]
[1674136040517,0.4916,1526.1,1525.9,0.03864664]
[1674136041676,2.0366,1526.1,1525.9,0.03864664]
[1674136042112,1.545,1526.0,1525.9,0.03864664]
[1674136042519,6.32834759,1526.0,1525.9,0.03864664]
[1674136042886,8.07355135,1526.0,1525.9,0.03864664]
[1674136043100,21.17969135,1526.0,1525.9,0.03864664]
[1674136043253,24.17969135,1526.0,1525.9,0.03864664]
[1674136045042,13.33487376,1526.0,1525.9,0.03864664]
[1674136045301,6.55180376,1526.0,1525.9,0.03864664]
[1674136046044,3.55180376,1526.0,1525.9,0.03864664]
[1674136046233,3.48580376,1526.0,1525.9,0.03864664]
[1674136047051,0.4916,1526.0,1525.9,0.93364664]
[1674136047250,0.002,1526.0,1525.9,0.93364664]
[1674136047460,9.9397,1526.2,1525.9,4.82529463]
[1674136047461,0.066,1526.2,1525.9,4.82529463]
[1674136047730,14.5793,1526.5,1525.9,2.47364664]
[1674136047949,14.5793,1526.5,1526.0,0.24736466]
[1674136048249,0.4915,1526.4,1526.0,0.24736466]
[1674136051406,0.4915,1526.4,1526.0,6.80033466]
[1674136051712,0.4915,1526.4,1526.0,6.86545316]
[1674136051923,0.4915,1526.4,1526.1,0.68654532]
[1674136052284,0.4915,1526.4,1526.0,0.0651185]
[1674136052534,0.4915,1526.4,1525.9,6.59214664]
[1674136052535,8.58792,1526.4,1525.9,0.10376514]
[1674136052742,8.65392,1526.4,1525.9,0.03864664]
[1674136053092,1.545,1526.3,1525.9,0.03864664]
[1674136053426,2.410392,1526.3,1525.9,0.03864664]
[1674136053949,2.410392,1526.3,1525.9,0.0358446]
[1674136054372,1.545,1526.3,1525.9,0.0358446]
[1674136054847,15.20559,1526.4,1525.9,0.0358446]
[1674136055850,0.5575,1526.4,1525.9,14.1428146]
[1674136056164,0.4915,1526.4,1525.9,15.7429331]
[1674136056378,0.4915,1526.4,1526.1,1.0]
[1674136056528,0.4915,1526.4,1526.0,8.19230181]
[1674136056737,0.4915,1526.4,1526.0,14.74537181]
[1674136057061,0.4915,1526.4,1526.1,1.0]
[1674136057279,0.4915,1526.4,1526.2,0.1]
[1674136057620,10.5237,1526.5,1526.2,6.65216]
[1674136057846,0.5574,1526.5,1526.2,6.7172785]
[1674136058004,0.4914,1526.5,1526.2,6.7172785]
[1674136058476,9.2535,1526.6,1526.2,6.7172785]
[1674136058637,15.80402,1526.6,1526.2,6.7172785]
[1674136058840,0.672,1526.5,1526.2,6.7172785]
[1674136059056,0.672,1526.5,1526.3,0.67172785]
[1674136059301,0.672,1526.5,1526.3,7.22345785]
[1674136059496,0.672,1526.5,1526.3,7.28857635]
[1674136059847,0.672,1526.5,1526.3,13.84036635]
[1674136061516,0.672,1526.5,1526.3,0.0651185]
[1674136061767,0.672,1526.5,1526.1,6.6175485]
[1674136062790,7.22299,1526.5,1526.1,6.6175485]
[1674136063005,7.28899,1526.5,1526.1,6.6175485]
[1674136064832,13.83998,1526.5,1526.1,0.0651185]
[1674136065181,24.77869784,1526.5,1526.0,6.6181085]
[1674136065350,2.72244349,1526.4,1526.0,0.0651185]
[1674136065519,2.72244349,1526.4,1525.9,6.5891146]
[1674136065520,2.23094349,1526.3,1525.9,0.1009631]
[1674136065736,2.23094349,1526.3,1525.9,0.0358446]
[1674136065963,6.55229,1526.2,1525.9,0.0358446]
[1674136066177,6.61829,1526.2,1525.9,0.0358446]
[1674136066409,0.661829,1526.1,1525.9,0.0358446]
[1674136068372,20.90059349,1526.2,1525.9,0.0358446]
[1674136068761,21.92895119,1526.2,1525.9,0.0358446]
[1674136069133,0.68594349,1526.1,1525.9,0.0358446]
[1674136069289,7.23886349,1526.1,1525.9,0.0358446]
[1674136069499,14.88614119,1526.1,1525.9,0.0358446]
[1674136069750,17.37074702,1526.1,1525.9,0.0358446]
[1674136070080,1.71430119,1526.0,1525.9,0.0358446]
[1674136070242,15.6260977,1526.0,1525.9,0.0358446]
[1674136070444,18.6920977,1526.0,1525.9,0.0358446]
[1674136070691,19.0550977,1526.0,1525.9,0.0358446]
[1674136070909,22.63821055,1526.0,1525.9,0.0358446]
[1674136071303,23.3240155,1526.0,1525.9,0.0358446]
[1674136071942,21.9610155,1526.0,1525.9,0.0358446]
[1674136072285,21.27521055,1526.0,1525.9,0.0358446]
[1674136072910,21.96095516,1526.0,1525.9,0.0358446]
[1674136074271,20.93259746,1526.0,1525.9,0.0358446]
[1674136074859,11.37952746,1526.0,1525.9,0.0358446]
[1674136075256,11.37952746,1526.0,1525.9,0.9308446]
[1674136075257,0.5576,1526.0,1525.9,0.9308446]
[1674136075398,1.17734461,1526.1,1525.9,0.0358446]
[1674136075606,0.4916,1526.1,1525.9,0.0358446]
[1674136075825,1.17734461,1526.1,1525.9,0.0358446]
[1674136076075,0.4916,1526.1,1525.9,0.0358446]
[1674136076250,24.30510554,1526.1,1525.9,0.0358446]
[1674136076592,7.23881461,1526.0,1525.9,0.0358446]
[1674136076814,7.30481461,1526.0,1525.9,0.0358446]
[1674136077753,13.85788461,1526.0,1525.9,0.03301181]
[1674136077968,16.29503616,1526.0,1525.9,0.03301181]
[1674136078151,15.60929155,1526.0,1525.9,0.03301181]
[1674136078359,13.17214,1526.0,1525.9,0.03301181]
[1674136079872,13.85788461,1526.0,1525.9,0.03301181]
[1674136080034,16.74484231,1526.0,1525.9,0.03301181]
[1674136080486,23.29791231,1526.0,1525.9,0.03301181]
[1674136080766,21.93091231,1526.0,1525.9,0.03301181]
[1674136080995,24.64105957,1526.0,1525.9,0.03301181]
[1674136081188,23.95531496,1526.0,1525.9,0.03301181]
[1674136081596,27.9326294,1526.0,1525.9,0.03301181]
[1674136081809,29.18083195,1526.0,1525.9,0.03301181]
[1674136082073,1.0,1525.9,1525.8,0.04850776]
[1674136082407,31.34967322,1525.9,1525.8,0.04850776]
[1674136082744,34.41567322,1525.9,1525.8,0.04850776]
[1674136083442,33.04439183,1525.9,1525.8,0.04850776]
[1674136084183,34.41567322,1525.9,1525.8,0.04850776]
[1674136084679,33.38721218,1525.9,1525.8,0.04850776]
[1674136084895,35.10084245,1525.9,1525.8,0.04850776]
[1674136085482,1.0,1525.8,1525.7,0.03864664]
[1674136085698,13.11513646,1525.8,1525.7,4.664e-05]
[1674136085965,38.05303082,1525.8,1525.7,4.664e-05]
[1674136086177,0.96295336,1525.6,1525.5,0.04850776]
[1674136086384,27.72372429,1525.6,1525.5,0.04850776]
[1674136086703,30.78972429,1525.6,1525.5,0.04850776]
[1674136086869,30.44713362,1525.6,1525.5,0.04850776]
[1674136087221,34.28617855,1525.6,1525.3,0.03864664]
[1674136087378,21.03595,1525.4,1525.3,0.03864664]
[1674136087587,20.22475,1525.4,1525.3,0.03864664]
[1674136087797,7.11345,1525.4,1525.3,0.03864664]
[1674136088070,0.066,1525.4,1525.3,0.03864664]
[1674136088283,23.49302,1525.5,1525.3,0.03864664]
[1674136088592,27.34608634,1525.5,1525.3,0.03864664]
[1674136088747,30.63783393,1525.5,1525.3,0.03864664]
[1674136088955,3.29174759,1525.4,1525.3,0.03864664]
[1674136089165,4.01354759,1525.4,1525.3,0.03864664]
[1674136089446,25.04949759,1525.4,1525.3,0.03864664]
[1674136089631,29.88354499,1525.4,1525.3,0.03864664]
[1674136090371,30.56795488,1525.4,1525.3,0.03864664]
[1674136090529,30.56795488,1525.4,1525.1,0.05510378]
[1674136090530,1.0,1525.3,1525.1,0.05510378]
[1674136090871,6.74554759,1525.2,1525.1,3.78e-06]
[1674136091153,1.0,1525.1,1525.0,0.05377688]
[1674136091465,19.49852759,1525.1,1525.0,0.05377688]
[1674136091825,22.56452759,1525.1,1525.0,0.05377688]
[1674136091993,33.00562759,1525.1,1525.0,0.05377688]
[1674136092162,34.22295518,1525.1,1525.0,0.05377688]
[1674136092581,31.85195518,1525.1,1525.0,0.05377688]
[1674136092789,23.84768759,1525.1,1525.0,0.05377688]
[1674136094889,23.35578759,1525.1,1525.0,0.05377688]
[1674136095247,30.14272759,1525.1,1525.0,0.05377688]
[1674136095563,30.63462759,1525.1,1525.0,0.05377688]
[1674136098153,29.91272759,1525.1,1525.0,0.05377688]
[1674136098506,23.35578759,1525.1,1525.0,0.05377688]
[1674136099348,20.35578759,1525.1,1525.0,0.05377688]
[1674136100349,10.5071,1525.1,1525.0,0.05377688]
[1674136100972,0.066,1525.1,1525.0,0.05377688]
[1674136101219,15.11942,1525.3,1525.0,0.05377688]
[1674136101858,15.11942,1525.3,1525.0,1.05377688]
[1674136102242,0.066,1525.3,1525.0,1.05377688]
[1674136102498,0.066,1525.4,1525.0,2.63169242]
[1674136102647,25.42097,1525.5,1525.0,9.73103242]
[1674136102857,25.42097,1525.5,1525.0,9.79615092]
[1674136103067,25.42097,1525.5,1525.0,16.35352092]
[1674136103283,25.42097,1525.5,1525.2,1.533]
[1674136103284,9.9973,1525.5,1525.2,1.533]
[1674136103548,0.066,1525.5,1525.2,14.64594]
[1674136103766,39.3221,1525.7,1525.2,14.7110585]
[1674136103999,0.066,1525.7,1525.3,1.47110585]
[1674136104202,23.59754,1525.8,1525.3,9.57296585]
[1674136104497,26.88928759,1525.8,1525.3,9.63808435]
[1674136104655,26.88928759,1525.8,1525.4,3.50980844]
[1674136104656,17.04327,1525.8,1525.4,3.50980844]
[1674136104865,16.55157,1525.8,1525.4,3.50980844]
[1674136105436,6.62027,1525.8,1525.4,3.50980844]
[1674136105890,0.066,1525.8,1525.5,1.533]
[1674136106077,3.83351645,1525.9,1525.4,10.13045694]
[1674136106288,7.12526404,1525.9,1525.5,1.01304569]
[1674136106619,3.50685415,1525.9,1525.5,1.01304569]
[1674136106786,3.44085415,1525.9,1525.5,1.01304569]
[1674136106996,4.12526404,1525.9,1525.5,1.01304569]
[1674136107265,3.29174759,1525.8,1525.4,0.0651185]
[1674136107464,1.0,1525.7,1525.3,0.0651185]
[1674136107676,1.0,1525.7,1525.2,8.6591185]
[1674136107895,7.70745675,1525.7,1525.2,10.83635035]
[1674136108217,7.77345675,1525.7,1525.2,9.29035035]
[1674136108589,1.21903675,1525.7,1525.2,10.83535035]
[1674136108784,10.59636748,1525.8,1525.3,9.09798]
[1674136108994,10.59636748,1525.8,1525.3,8.1630985]
[1674136109282,9.91195759,1525.8,1525.3,8.1630985]
[1674136109433,10.59636748,1525.8,1525.3,8.1630985]
[1674136109708,13.38431737,1525.8,1525.3,6.6210985]
[1674136109854,12.69990748,1525.8,1525.3,6.6210985]
[1674136110045,12.69990748,1525.8,1525.3,8.1670985]
[1674136110257,12.69990748,1525.8,1525.3,9.1670985]
[1674136110585,12.69990748,1525.8,1525.3,10.61280253]
[1674136111426,0.066,1525.8,1525.4,1.541]
[1674136111772,3.0,1525.8,1525.4,9.09639]
[1674136111943,3.0,1525.8,1525.4,9.1615085]
[1674136112161,3.0,1525.8,1525.4,8.1615085]
[1674136112359,3.0,1525.8,1525.4,10.53343575]
[1674136113365,0.89951645,1525.9,1525.4,10.53121122]
[1674136113531,0.14910656,1525.9,1525.6,1.542]
[1674136113745,0.14910656,1525.9,1525.7,0.1542]
[1674136114759,0.14910656,1525.9,1525.6,6.6198385]
[1674136114876,0.14910656,1525.9,1525.6,0.0651185]
[1674136115087,0.14910656,1525.9,1525.5,0.0651185]
[1674136115088,7.38719645,1525.9,1525.5,0.0651185]
[1674136115296,15.03349128,1525.9,1525.4,24.5004485]
[1674136115506,0.73871964,1525.8,1525.4,24.5004485]
[1674136115780,1.42312953,1525.8,1525.4,16.4026485]
[1674136116352,1.42312953,1525.8,1525.4,6.6206485]
[1674136116353,0.73871964,1525.8,1525.4,6.6206485]
[1674136116611,0.74071964,1525.8,1525.4,7.6186485]
[1674136116860,14.00487645,1525.9,1525.4,17.84514235]
[1674136116861,7.45319645,1525.9,1525.4,17.84514235]
[1674136117013,0.21510656,1525.9,1525.4,24.40079235]
[1674136117188,0.14910656,1525.9,1525.5,1.542]
[1674136117504,0.14910656,1525.9,1525.5,17.09221924]
[1674136117715,0.14910656,1525.9,1525.5,17.15733774]
[1674136117918,0.83351645,1525.9,1525.5,15.61533774]
[1674136118404,7.38702645,1525.9,1525.5,15.61533774]
[1674136118561,7.45302645,1525.9,1525.5,15.61533774]
[1674136118794,10.79877503,1525.9,1525.5,15.61533774]
[1674136119813,11.82538986,1525.9,1525.5,6.6199885]
[1674136120028,3.97615748,1525.8,1525.5,0.0651185]
[1674136120249,0.68440989,1525.7,1525.3,6.6209285]
[1674136120515,0.06844099,1525.6,1525.3,0.0651185]
[1674136120658,0.06844099,1525.6,1525.2,30.9055185]
[1674136120867,0.06844099,1525.6,1525.2,24.3492185]
[1674136121135,0.06844099,1525.6,1525.2,16.5341185]
[1674136121292,6.62329099,1525.6,1525.2,16.0423185]
[1674136121505,6.68929099,1525.6,1525.2,16.0423185]
[1674136121744,6.68929099,1525.6,1525.2,6.6214185]
[1674136121927,13.24414099,1525.6,1525.2,6.6214185]
[1674136122139,16.53588858,1525.6,1525.2,0.0651185]
[1674136122381,7.8797341,1525.5,1525.1,15.2151685]
[1674136122560,6.62132,1525.5,1525.1,15.2151685]
[1674136123446,6.62132,1525.5,1525.1,7.1135785]
[1674136123967,7.30572989,1525.5,1525.1,6.6216785]
[1674136124538,6.62132,1525.5,1525.1,6.6216785]
[1674136124811,8.99888185,1525.5,1525.1,6.6216785]
[1674136124967,8.99888185,1525.5,1525.1,7.6216785]
[1674136125176,0.066,1525.5,1525.2,1.546]
[1674136125423,6.68929099,1525.6,1525.2,14.6587]
[1674136125589,6.68929099,1525.6,1525.2,14.7238185]
[1674136125804,0.066,1525.6,1525.2,23.34772566]
[1674136126034,18.5491,1525.7,1525.4,8.09355]
[1674136126290,0.066,1525.7,1525.4,8.1586685]
[1674136126472,11.82289472,1525.8,1525.4,8.1586685]
[1674136126663,14.80247216,1525.8,1525.4,8.1586685]
[1674136127110,1.24210989,1525.8,1525.4,8.1586685]
[1674136127434,1.17610989,1525.8,1525.4,21.2699685]
[1674136127802,0.4917,1525.8,1525.4,21.2699685]
[1674136128010,0.21510656,1525.9,1525.6,1.546]
[1674136128247,0.14910656,1525.9,1525.6,1.7006]
[1674136128618,0.14910656,1525.9,1525.7,6.55436]
[1674136128802,0.14910656,1525.9,1525.7,6.6194785]
[1674136131347,0.14910656,1525.9,1525.7,0.0651185]
[1674136131507,0.83351645,1525.9,1525.6,14.7203985]
[1674136131993,9.96605741,1525.9,1525.6,0.0651185]
[1674136132161,16.58556741,1525.9,1525.5,13.1750385]
[1674136132370,16.58556741,1525.9,1525.5,0.0651185]
[1674136132371,7.23833989,1525.8,1525.5,0.0651185]
[1674136132580,0.72383399,1525.7,1525.4,16.2780085]
[1674136133200,0.72383399,1525.7,1525.4,6.6205085]
[1674136134068,7.96269388,1525.7,1525.4,0.0651185]
[1674136134245,0.0723834,1525.6,1525.3,13.1771985]
[1674136134814,6.6272034,1525.6,1525.3,0.0651185]
[1674136135137,0.66272034,1525.5,1525.2,6.6213785]
[1674136135443,0.1383834,1525.6,1525.2,21.2753985]
[1674136135662,15.07495388,1525.7,1525.2,21.2753985]
[1674136135870,14.58325388,1525.7,1525.2,21.2753985]
[1674136136701,8.02869388,1525.7,1525.2,21.2753985]
[1674136137282,0.68440989,1525.6,1525.2,21.2753985]
[1674136137545,0.68440989,1525.6,1525.2,24.15733835]
[1674136137761,0.68440989,1525.6,1525.3,14.11181]
[1674136137947,0.68440989,1525.6,1525.3,14.1769285]